[Event "XII Cracow ICC-A 2024"]
[Site "Krakow"]
[Date "2024.06.29"]
[Round "9.11"]
[White "Fus, Jakub"]
[Black "Gierulski, Kamil"]
[Result "1/2-1/2"]
[ECO "A35"]
[WhiteElo "2455"]
[BlackElo "2242"]
[Annotator "TA"]
[PlyCount "87"]
[EventDate "2024.06.20"]
[EventType "swiss"]
[EventCountry "POL"]
[SourceTitle "playchess.com"]
[Source "ChessBase"]
[SourceQuality "1"]
[TimeControl "40/5400+30:1800+30"]

{[%evp 13,87,16,18,15,24,24,14,23,14,17,14,21,11,0,0,0,0,-5,7,-14,0,0,38,30,41,43,48,52,62,64,66,66,68,68,68,68,68,68,68,68,68,68,68,68,68,68,68,65,65,65,65,65,65,22,53,53,53,53,53,0,0,0,0,0,0,0,0,0,0,0,0,0,0,0,0,0]} 1. c4 {[%emt 0:00:03]} c5 {[%emt 0:00:01]} 2. Nc3 {[%emt 0:00:17]} Nf6 {[%emt 0:00:03]} 3. Nf3 {[%emt 0:00:21]} Nc6 {[%emt 0:00:03]} 4. e3 {[%emt 0:00:23]} e5 {[%emt 0:00:01]} 5. Be2 {[%emt 0:00:20]} d5 {[%emt 0:00:07]} 6. d4 {[%emt 0:00:16]} cxd4 {[%emt 0:00:14]} 7. exd4 {[%emt 0:00:08]} exd4 {[%emt 0:00:17]} 8. Nxd4 {[%emt 0:00:25]} dxc4 {[%emt 0:00:10]} 9. Nxc6 {[%emt 0:00:32][%csl Gc6][%cal Rd1d8] [#]} Qxd1+ {[%emt 0:00:04]} 10. Nxd1 {[%emt 0:00:23]} bxc6 {[%emt 0:00:03]} 11. Bxc4 {[%emt 0:00:21]} Nd5 {[%emt 0:00:13][%cal Bf6d5,Bd5f4,Bf4g6,Bg6e5][%mdl 32]} 12. Ne3 {[%emt 0:08:58]} Bb4+ {[%emt 0:11:05]} 13. Ke2 {[%emt 0:00:41]} Nf4+ {[%emt 0:01:38]} 14. Kf3 {[%emt 0:00:15]} Ng6 {[%emt 0:00:04]} 15. Rd1 {[%emt 0:03:26]} Ne5+ {[%emt 0:00:35]} 16. Ke2 {[%emt 0:01:47]} Bc5 {[%emt 0:02:31] [#] Threatens to win with ...Bxe3.} 17. b3 {[%emt 0:02:33]} Bxe3 {[%emt 0:00:20]} 18. Bxe3 {[%emt 0:00:07]} Nxc4 {[%emt 0:00:21]} 19. bxc4 {[%emt 0:00:06]} Be6 {[%emt 0:00:37]} 20. Kd3 {[%emt 0:01:20]} O-O-O+ {[%emt 0:20:34]} 21. Kc3 {[%emt 0:05:00]} Rxd1 {[%emt 0:00:22]} 22. Rxd1 {[%emt 0:00:07]} Rd8 {[%emt 0:00:31]} 23. Rxd8+ {[%emt 0:00:22]} Kxd8 {[%emt 0:00:05]} 24. Bxa7 $14 {[%emt 0:00:08][%mdl 4096] Endgame. KB-KB} Kc7 {[%emt 0:00:09]} 25. Bd4 {[%emt 0:00:27]} g6 {[%emt 0:00:08]} 26. Kb4 {[%emt 0:00:26]} Kb7 {[%emt 0:00:10]} 27. Kc5 {[%emt 0:00:13]} h5 {[%emt 0:00:20]} 28. Bf6 {[%emt 0:00:30]} Kc7 {[%emt 0:00:50]} 29. a3 {[%emt 0:01:01]} Kb7 {[%emt 0:00:05]} 30. f3 {[%emt 0:00:49]} Bf5 {[%emt 0:01:15]} 31. Kd4 {[%emt 0:00:57]} Bc2 {[%emt 0:02:08]} 32. Be7 {[%emt 0:01:56]} Bd1 {[%emt 0:00:26]} 33. Ke5 {[%emt 0:00:31] aiming for Kf6.} Be2 {[%emt 0:00:27]} 34. c5 {[%emt 0:00:17]} Bf1 {[%emt 0:00:40]} 35. g3 $1 {[%emt 0:01:24]} Be2 {[%emt 0:00:05]} 36. Kf4 {[%emt 0:02:56]} (36. Kf6 $14) 36... Ka6 $11 {[%emt 0:00:41] The position is equal.} 37. g4 {[%emt 0:00:48]} Kb5 {[%emt 0:01:34]} 38. gxh5 {[%emt 0:02:24]} gxh5 {[%emt 0:00:09]} 39. Ke3 {[%emt 0:00:12]} Bd1 {[%emt 0:00:10]} 40. f4 {[%emt 0:00:05]} Ka4 {[%emt 0:00:32]} 41. Ke4 {[%emt 0:30:08]} Kxa3 {[%emt 0:30:24]} 42. Ke5 {[%emt 0:00:06]} Kb4 {[%emt 0:00:21]} 43. Kf6 {[%emt 0:00:05]} Bb3 {[%emt 0:00:06]} 44. Kg5 {[%emt 0:00:36] Weighted Error Value: White=0.05 (flawless) /Black=0.04 (flawless) .  Mistake:       	White=1     	---        Inaccurate:     	White=1     	Black=2      OK:         	White=14    	Black=20     Best:        	White=1     	---        Strong:       	White=1     	---} 1/2-1/2

[Event "XII Cracow ICC-A 2024"]
[Site "Krakow"]
[Date "2024.06.29"]
[Round "9.12"]
[White "Alexiadis, Hristos"]
[Black "Pyrig, Roman"]
[Result "1-0"]
[ECO "A13"]
[WhiteElo "2378"]
[BlackElo "2260"]
[Annotator "RC"]
[PlyCount "97"]
[EventDate "2024.06.20"]
[EventType "swiss"]
[EventCountry "POL"]
[SourceTitle "playchess.com"]
[Source "ChessBase"]
[SourceQuality "1"]
[TimeControl "40/5400+30:1800+30"]

1. Nf3 {[%emt 0:09:23]} d5 {[%emt 0:00:08]} 2. g3 {[%emt 0:00:08]} Nf6 {[%emt 0:00:06]} 3. Bg2 {[%emt 0:00:07]} e6 {[%emt 0:00:07]} 4. c4 {[%emt 0:00:53]} c6 {[%emt 0:00:07]} 5. d4 {[%emt 0:01:18]} Bb4+ {[%emt 0:00:02]} 6. Nbd2 {[%emt 0:00:07]} dxc4 {[%emt 0:00:06]} 7. Qc2 {[%emt 0:00:55]} b5 {[%emt 0:00:11]} 8. a3 {[%emt 0:01:06]} Be7 {[%emt 0:00:22]} 9. O-O {[%emt 0:01:13]} Bb7 {[%emt 0:01:14]} 10. b3 {[%emt 0:00:36]} cxb3 {[%emt 0:00:04]} 11. Nxb3 {[%emt 0:00:07]} O-O {[%emt 0:04:23]} 12. Nc5 {[%emt 0:05:52]} Bc8 {[%emt 0:01:31]} 13. Rd1 {[%emt 0:10:57]} Nfd7 {[%emt 0:07:28]} 14. Bb2 {[%emt 0:07:38]} Qb6 {[%emt 0:00:51]} 15. Rac1 {[%emt 0:05:25]} Rd8 {[%emt 0:03:15]} 16. h4 {[%emt 0:11:43]} a5 {[%emt 0:00:20]} 17. Ng5 {[%emt 0:07:06]} Nf8 {[%emt 0:00:02]} 18. Nd3 {[%emt 0:06:45]} Bd7 {[%emt 0:04:21]} 19. Ne5 {[%emt 0:09:42]} f6 {[%emt 0:02:47]} 20. Nxd7 {[%emt 0:00:20]} Nbxd7 {[%emt 0:00:01]} 21. Nxe6 {[%emt 0:11:32]} Nxe6 {[%emt 0:00:02]} 22. Qe4 {[%emt 0:00:05]} c5 {[%emt 0:01:04]} 23. d5 {[%emt 0:00:43]} Nef8 {[%emt 0:11:50]} 24. d6 {[%emt 0:00:04]} Bxd6 {[%emt 0:00:06]} 25. Qd5+ {[%emt 0:00:05]} Kh8 {[%emt 0:00:03]} 26. Qxd6 {[%emt 0:00:05]} Qxd6 {[%emt 0:00:02]} 27. Rxd6 {[%emt 0:00:06]} Rac8 {[%emt 0:01:24]} 28. Ra6 {[%emt 0:02:16]} a4 {[%emt 0:01:26]} 29. Ra5 {[%emt 0:00:06]} Rb8 {[%emt 0:03:18]} 30. Bc6 {[%emt 0:00:36]} Rdc8 {[%emt 0:00:03]} 31. Bxb5 {[%emt 0:01:29]} Rc7 {[%emt 0:01:38]} 32. Bc3 {[%emt 0:00:29]} Nb6 {[%emt 0:00:29]} 33. Bxa4 {[%emt 0:03:07]} Nc4 {[%emt 0:00:52]} 34. Ra6 {[%emt 0:00:05]} Nxa3 {[%emt 0:00:17]} 35. Bd2 {[%emt 0:00:08]} Ng6 {[%emt 0:00:32]} 36. Bc6 {[%emt 0:02:53]} Ne5 {[%emt 0:06:23]} 37. Bf4 {[%emt 0:00:37]} Rbc8 {[%emt 0:00:54]} 38. Ba4 {[%emt 0:02:27]} h5 {[%emt 0:05:23]} 39. Bxe5 {[%emt 0:00:22]} fxe5 {[%emt 0:00:04]} 40. Ra5 {[%emt 0:00:03]} c4 {[%emt 0:03:57]} 41. Ra1 {[%emt 0:07:46]} Rc5 {[%emt 0:07:05]} 42. Rxc5 {[%emt 0:00:06]} Rxc5 {[%emt 0:00:01]} 43. Rxa3 {[%emt 0:00:08]} Ra5 {[%emt 0:00:01]} 44. Kf1 {[%emt 0:00:17]} e4 {[%emt 0:00:04]} 45. Ke1 {[%emt 0:00:37]} c3 {[%emt 0:00:08]} 46. Kd1 {[%emt 0:00:47]} g5 {[%emt 0:01:40]} 47. hxg5 {[%emt 0:00:44]} Kg7 {[%emt 0:00:01]} 48. Kc2 {[%emt 0:05:40]} e3 {[%emt 0:00:04]} 49. f4 {[%emt 0:01:11]} 1-0

[Event "XII Cracow ICC-A 2024"]
[Site "Krakow"]
[Date "2024.06.29"]
[Round "9.13"]
[White "Nandhidhaa, P V"]
[Black "Lohia, Sohum"]
[Result "1/2-1/2"]
[ECO "C48"]
[WhiteElo "2344"]
[BlackElo "2270"]
[Annotator "RC"]
[PlyCount "27"]
[EventDate "2024.06.20"]
[EventType "swiss"]
[EventCountry "POL"]
[SourceTitle "playchess.com"]
[Source "ChessBase"]
[SourceQuality "1"]
[TimeControl "40/5400+30:1800+30"]

1. e4 {[%emt 0:00:04]} e5 {[%emt 0:00:07]} 2. Nf3 {[%emt 0:00:06]} Nc6 {[%emt 0:00:08]} 3. Nc3 {[%emt 0:00:05]} Nf6 {[%emt 0:00:07]} 4. Bb5 Nd4 {[%emt 0:00:16]} 5. Nxd4 {[%emt 0:02:12]} exd4 {[%emt 0:00:10]} 6. e5 {[%emt 0:00:27]} dxc3 {[%emt 0:00:13]} 7. exf6 {[%emt 0:00:07]} Qxf6 {[%emt 0:00:17]} 8. dxc3 {[%emt 0:00:59]} Bc5 {[%emt 0:00:24]} 9. Qe2+ {[%emt 0:00:33]} Qe6 {[%emt 0:00:45]} 10. O-O {[%emt 0:02:03]} O-O {[%emt 0:01:30]} 11. Re1 {[%emt 0:02:26]} Qxe2 {[%emt 0:05:52]} 12. Rxe2 {[%emt 0:01:52]} c6 {[%emt 0:00:58]} 13. Bd3 {[%emt 0:00:46]} d5 {[%emt 0:00:39]} 14. Be3 {[%emt 0:02:53]} 1/2-1/2

[Event "XII Cracow ICC-A 2024"]
[Site "Krakow"]
[Date "2024.06.29"]
[Round "9.16"]
[White "Brzezina, Piotr"]
[Black "Marszalek, Maciej"]
[Result "1-0"]
[ECO "A67"]
[WhiteElo "2298"]
[BlackElo "2255"]
[Annotator "RC"]
[PlyCount "69"]
[EventDate "2024.06.20"]
[EventType "swiss"]
[EventCountry "POL"]
[SourceTitle "playchess.com"]
[Source "ChessBase"]
[SourceQuality "1"]
[TimeControl "40/5400+30:1800+30"]

1. d4 {[%emt 0:02:04]} Nf6 {[%emt 0:00:17]} 2. c4 {[%emt 0:00:05]} c5 {[%emt 0:03:41]} 3. d5 {[%emt 0:00:25]} e6 {[%emt 0:00:02]} 4. Nc3 {[%emt 0:00:06]} exd5 {[%emt 0:00:04]} 5. cxd5 {[%emt 0:00:04]} d6 {[%emt 0:00:07]} 6. e4 {[%emt 0:00:05]} g6 {[%emt 0:00:14]} 7. f4 {[%emt 0:00:22]} Bg7 {[%emt 0:00:03]} 8. Bb5+ {[%emt 0:00:06]} Nfd7 {[%emt 0:00:07]} 9. Bd3 {[%emt 0:00:11]} Qh4+ {[%emt 0:04:18]} 10. g3 {[%emt 0:00:06]} Qd8 {[%emt 0:00:02]} 11. Nf3 {[%emt 0:01:13]} O-O {[%emt 0:01:02]} 12. O-O {[%emt 0:02:18]} Na6 {[%emt 0:01:39]} 13. f5 {[%emt 0:14:38]} gxf5 {[%emt 0:06:00]} 14. exf5 {[%emt 0:00:08]} Nf6 {[%emt 0:00:48]} 15. Bg5 {[%emt 0:11:51]} c4 {[%emt 0:05:30]} 16. Bxc4 {[%emt 0:05:34]} h6 {[%emt 0:07:51]} 17. Bh4 {[%emt 0:03:22]} Qb6+ {[%emt 0:05:33]} 18. Qd4 {[%emt 0:13:27]} Ng4 {[%emt 0:26:47]} 19. Qxb6 {[%emt 0:03:05]} axb6 {[%emt 0:00:02]} 20. Rae1 {[%emt 0:04:53]} Nc5 {[%emt 0:07:34]} 21. Nb5 {[%emt 0:09:59]} Bd7 {[%emt 0:07:52]} 22. Nxd6 {[%emt 0:07:06]} Bxb2 {[%emt 0:00:31]} 23. Be7 {[%emt 0:01:59]} Rfb8 {[%emt 0:04:44]} 24. h3 {[%emt 0:01:38]} Nf6 {[%emt 0:00:07]} 25. Re2 {[%emt 0:00:46]} Bc3 {[%emt 0:01:38]} 26. Re3 {[%emt 0:04:46]} Bb2 {[%emt 0:03:34]} 27. Rb1 {[%emt 0:00:17]} Na4 {[%emt 0:00:13]} 28. Rxb2 {[%emt 0:05:05]} Nxb2 {[%emt 0:00:04]} 29. Bxf6 {[%emt 0:00:03]} Nxc4 {[%emt 0:00:08]} 30. Nxc4 {[%emt 0:00:04]} Bxf5 {[%emt 0:01:39]} 31. g4 {[%emt 0:01:49]} Bb1 {[%emt 0:00:33]} 32. d6 {[%emt 0:01:29]} Bxa2 {[%emt 0:00:07]} 33. Nxb6 {[%emt 0:00:13]} Ra6 {[%emt 0:00:13]} 34. d7 {[%emt 0:00:15]} Rxb6 {[%emt 0:00:07]} 35. Re8+ {[%emt 0:00:06]} 1-0

[Event "XII Cracow ICC-A 2024"]
[Site "Krakow"]
[Date "2024.06.29"]
[Round "9.17"]
[White "Aakash Sharadchandra, Dalvi"]
[Black "Mahitosh Dey"]
[Result "1/2-1/2"]
[ECO "D35"]
[WhiteElo "2291"]
[BlackElo "2232"]
[Annotator "RC"]
[PlyCount "37"]
[EventDate "2024.06.20"]
[EventType "swiss"]
[EventCountry "POL"]
[SourceTitle "playchess.com"]
[Source "ChessBase"]
[SourceQuality "1"]
[TimeControl "40/5400+30:1800+30"]

1. d4 {[%emt 0:07:23]} d5 {[%emt 0:00:36]} 2. c4 {[%emt 0:00:18]} e6 {[%emt 0:00:04]} 3. cxd5 {[%emt 0:00:12]} exd5 {[%emt 0:00:03]} 4. Nc3 {[%emt 0:00:05]} Nf6 {[%emt 0:00:06]} 5. Bg5 {[%emt 0:00:19]} Be7 {[%emt 0:00:03]} 6. e3 {[%emt 0:00:07]} O-O {[%emt 0:00:04]} 7. Bd3 {[%emt 0:00:04]} c6 {[%emt 0:00:04]} 8. Nf3 {[%emt 0:00:08]} Nbd7 {[%emt 0:00:06]} 9. Qc2 {[%emt 0:00:05]} Re8 {[%emt 0:00:04]} 10. O-O {[%emt 0:00:13]} Nf8 {[%emt 0:00:02]} 11. Rab1 {[%emt 0:00:14]} a5 {[%emt 0:00:09]} 12. a3 {[%emt 0:00:11]} g6 {[%emt 0:00:16]} 13. b4 {[%emt 0:01:06]} axb4 {[%emt 0:00:03]} 14. axb4 {[%emt 0:00:05]} Ne6 {[%emt 0:00:02]} 15. Bh4 {[%emt 0:00:08]} Ng7 {[%emt 0:00:06]} 16. Bg5 {[%emt 0:00:12]} Ne6 {[%emt 0:00:05]} 17. Bh4 {[%emt 0:00:05]} Ng7 {[%emt 0:00:01]} 18. Bg5 {[%emt 0:00:08]} Ne6 {[%emt 0:00:02]} 19. Bh4 {[%emt 0:00:07]} 1/2-1/2

[Event "XII Cracow ICC-A 2024"]
[Site "Krakow"]
[Date "2024.06.29"]
[Round "9.18"]
[White "Vasynda, Oleksandr"]
[Black "Nguyen, Piotr"]
[Result "0-1"]
[ECO "A40"]
[WhiteElo "2219"]
[BlackElo "2426"]
[Annotator "RC"]
[PlyCount "90"]
[EventDate "2024.06.20"]
[EventType "swiss"]
[EventCountry "POL"]
[SourceTitle "playchess.com"]
[Source "ChessBase"]
[SourceQuality "1"]
[TimeControl "40/5400+30:1800+30"]

1. d4 {[%emt 0:00:04]} g6 {[%emt 0:00:21]} 2. Nf3 {[%emt 0:00:13]} Bg7 {[%emt 0:00:06]} 3. c4 {[%emt 0:00:03]} c5 {[%emt 0:00:11]} 4. d5 {[%emt 0:00:05]} d6 {[%emt 0:02:43]} 5. Nc3 {[%emt 0:02:04]} Bxc3+ {[%emt 0:00:13]} 6. bxc3 {[%emt 0:00:01]} f5 {[%emt 0:02:03]} 7. e3 {[%emt 0:01:54]} Qa5 {[%emt 0:02:07]} 8. Bd2 {[%emt 0:00:51]} Nf6 {[%emt 0:00:25]} 9. Bd3 {[%emt 0:00:44]} Nbd7 {[%emt 0:03:19]} 10. O-O {[%emt 0:02:48]} Nb6 {[%emt 0:03:16]} 11. Re1 {[%emt 0:04:35]} Qa4 {[%emt 0:08:41]} 12. Qb3 {[%emt 0:06:40]} O-O {[%emt 0:08:59]} 13. Rab1 {[%emt 0:06:51]} Rb8 {[%emt 0:06:56]} 14. Bc1 {[%emt 0:04:00]} Qa6 {[%emt 0:05:02]} 15. Qc2 {[%emt 0:08:18]} e5 {[%emt 0:07:40]} 16. dxe6 {[%emt 0:04:36]} Bxe6 {[%emt 0:01:23]} 17. e4 {[%emt 0:00:22]} fxe4 {[%emt 0:06:31]} 18. Bxe4 {[%emt 0:00:28]} Nxe4 {[%emt 0:03:08]} 19. Qxe4 {[%emt 0:00:15]} Bf5 {[%emt 0:00:30]} 20. Qe7 {[%emt 0:00:30]} Rbe8 {[%emt 0:11:15]} 21. Qc7 {[%emt 0:08:18]} Rxe1+ {[%emt 0:03:04]} 22. Nxe1 {[%emt 0:00:01]} Qxc4 {[%emt 0:00:15]} 23. Bh6 {[%emt 0:01:02]} Qf7 {[%emt 0:01:08]} 24. Qxf7+ {[%emt 0:01:33]} Rxf7 {[%emt 0:00:02]} 25. Rd1 {[%emt 0:00:06]} Nc4 {[%emt 0:06:21]} 26. Nf3 {[%emt 0:00:40]} Re7 {[%emt 0:01:49]} 27. h3 {[%emt 0:01:53]} Re2 {[%emt 0:06:32]} 28. Kh2 {[%emt 0:05:25]} Kf7 {[%emt 0:02:20]} 29. Ng5+ {[%emt 0:00:46]} Ke7 {[%emt 0:00:18]} 30. Kg3 {[%emt 0:00:35]} Rxa2 {[%emt 0:01:25]} 31. Nxh7 {[%emt 0:00:17]} a5 {[%emt 0:01:04]} 32. Bf8+ {[%emt 0:00:39]} Kd7 {[%emt 0:00:30]} 33. Nf6+ {[%emt 0:00:17]} Kc6 {[%emt 0:01:53]} 34. Ne8 {[%emt 0:00:51]} d5 {[%emt 0:00:33]} 35. Nf6 {[%emt 0:00:31]} Rd2 {[%emt 0:00:22]} 36. Re1 {[%emt 0:01:49]} a4 {[%emt 0:00:57]} 37. Kf3 {[%emt 0:00:30]} a3 {[%emt 0:02:04]} 38. g4 {[%emt 0:00:17]} Be4+ {[%emt 0:01:28]} 39. Nxe4 {[%emt 0:00:09]} dxe4+ {[%emt 0:00:04]} 40. Kxe4 {[%emt 0:00:45]} Rxf2 {[%emt 0:01:30]} 41. Bg7 {[%emt 0:30:11]} Rf7 {[%emt 0:31:22]} 42. Kd3 {[%emt 0:00:18]} Nb2+ {[%emt 0:00:25]} 43. Kc2 {[%emt 0:00:02]} Rxg7 {[%emt 0:00:05]} 44. Kb3 {[%emt 0:00:11]} b5 {[%emt 0:00:41]} 45. Kxa3 {[%emt 0:00:06]} Nd3 {[%emt 0:00:05]} 0-1

[Event "XII Cracow ICC-A 2024"]
[Site "Krakow"]
[Date "2024.06.29"]
[Round "9.19"]
[White "Apoorv Kamble"]
[Black "Klepek, Witold"]
[Result "1/2-1/2"]
[ECO "C00"]
[WhiteElo "2369"]
[BlackElo "2236"]
[Annotator "RC"]
[PlyCount "81"]
[EventDate "2024.06.20"]
[EventType "swiss"]
[EventCountry "POL"]
[SourceTitle "playchess.com"]
[Source "ChessBase"]
[SourceQuality "1"]
[TimeControl "40/5400+30:1800+30"]

1. e4 {[%emt 0:00:02]} e6 {[%emt 0:00:27]} 2. Nf3 {[%emt 0:00:05]} d5 {[%emt 0:00:46]} 3. Nc3 {[%emt 0:00:05]} Nf6 {[%emt 0:00:05]} 4. e5 {[%emt 0:00:03]} Nfd7 {[%emt 0:00:04]} 5. d4 {[%emt 0:00:04]} c5 {[%emt 0:00:04]} 6. dxc5 {[%emt 0:00:04]} Nc6 {[%emt 0:00:06]} 7. Bf4 {[%emt 0:01:25]} Nxc5 {[%emt 0:00:53]} 8. Be2 {[%emt 0:06:37]} a6 {[%emt 0:08:52]} 9. a3 {[%emt 0:04:52]} Be7 {[%emt 0:05:58]} 10. Qd2 {[%emt 0:27:43]} O-O {[%emt 0:03:21]} 11. Rd1 {[%emt 0:04:19]} b5 {[%emt 0:08:35]} 12. O-O {[%emt 0:00:24]} Bb7 {[%emt 0:02:01]} 13. Nd4 {[%emt 0:01:49]} Qc7 {[%emt 0:05:03]} 14. Nxc6 {[%emt 0:01:56]} Qxc6 {[%emt 0:02:18]} 15. Bf3 {[%emt 0:02:04]} Ne4 {[%emt 0:02:47]} 16. Bxe4 {[%emt 0:01:10]} dxe4 {[%emt 0:00:31]} 17. Qe3 {[%emt 0:15:36]} Rfd8 {[%emt 0:03:46]} 18. Bg5 {[%emt 0:02:24]} Rxd1 {[%emt 0:03:10]} 19. Rxd1 {[%emt 0:00:03]} Bf8 {[%emt 0:02:17]} 20. Qg3 {[%emt 0:05:09]} a5 {[%emt 0:03:30]} 21. Rd2 {[%emt 0:04:49]} b4 {[%emt 0:00:51]} 22. axb4 {[%emt 0:00:02]} axb4 {[%emt 0:00:28]} 23. Nd1 {[%emt 0:00:06]} Kh8 {[%emt 0:17:07]} 24. h4 {[%emt 0:01:53]} h6 {[%emt 0:02:06]} 25. Be3 {[%emt 0:00:11]} Be7 {[%emt 0:00:39]} 26. Kh2 {[%emt 0:03:25]} Qb5 {[%emt 0:02:37]} 27. c4 {[%emt 0:04:33]} bxc3 {[%emt 0:02:59]} 28. Nxc3 {[%emt 0:00:18]} Qb4 {[%emt 0:01:46]} 29. Qf4 {[%emt 0:07:15]} Kg8 {[%emt 0:01:20]} 30. Qg4 {[%emt 0:00:35]} Kf8 {[%emt 0:01:01]} 31. Rd4 {[%emt 0:01:07]} Qxb2 {[%emt 0:00:36]} 32. Nxe4 {[%emt 0:00:09]} Qb5 {[%emt 0:03:21]} 33. Qf4 {[%emt 0:01:47]} Qf1 {[%emt 0:00:38]} 34. Rd7 {[%emt 0:00:41]} g5 {[%emt 0:01:26]} 35. Qf3 {[%emt 0:01:20]} Ra1 {[%emt 0:00:16]} 36. hxg5 {[%emt 0:00:35]} Qh1+ {[%emt 0:04:18]} 37. Kg3 {[%emt 0:00:04]} Bxe4 {[%emt 0:00:12]} 38. Qxe4 {[%emt 0:00:11]} hxg5 {[%emt 0:01:19]} 39. Qg4 {[%emt 0:02:10]} Rg1 {[%emt 0:07:30]} 40. Kf3 {[%emt 0:01:48]} Rd1 {[%emt 0:00:48]} 41. Ke4 1/2-1/2

[Event "XII Cracow ICC-A 2024"]
[Site "Krakow"]
[Date "2024.06.29"]
[Round "9.20"]
[White "Backiel, Hubert"]
[Black "Suder, Jakub"]
[Result "1/2-1/2"]
[ECO "D20"]
[WhiteElo "2200"]
[BlackElo "2328"]
[Annotator "RC"]
[PlyCount "61"]
[EventDate "2024.06.20"]
[EventType "swiss"]
[EventCountry "POL"]
[SourceTitle "playchess.com"]
[Source "ChessBase"]
[SourceQuality "1"]
[TimeControl "40/5400+30:1800+30"]

1. d4 {[%emt 0:00:02]} d5 {[%emt 0:00:24]} 2. c4 {[%emt 0:00:05]} dxc4 {[%emt 0:00:12]} 3. e3 {[%emt 0:00:50]} e5 {[%emt 0:00:04]} 4. Bxc4 {[%emt 0:03:33]} exd4 {[%emt 0:02:17]} 5. Nf3 {[%emt 0:00:41]} Bb4+ {[%emt 0:00:09]} 6. Bd2 {[%emt 0:00:34]} Bxd2+ {[%emt 0:00:06]} 7. Qxd2 {[%emt 0:00:23]} Nc6 {[%emt 0:03:13]} 8. O-O {[%emt 0:08:53]} Nf6 {[%emt 0:02:07]} 9. exd4 {[%emt 0:02:35]} O-O {[%emt 0:00:09]} 10. d5 {[%emt 0:01:23]} Ne7 {[%emt 0:00:49]} 11. Nc3 {[%emt 0:00:12]} a6 {[%emt 0:02:56]} 12. a4 {[%emt 0:31:41]} Qd6 {[%emt 0:01:46]} 13. Rfe1 {[%emt 0:01:17]} Ng6 {[%emt 0:02:04]} 14. h3 {[%emt 0:02:21]} Bd7 {[%emt 0:04:49]} 15. Qd4 {[%emt 0:13:29]} Rad8 {[%emt 0:03:10]} 16. Bb3 {[%emt 0:02:36]} Bc8 {[%emt 0:01:18]} 17. Rad1 {[%emt 0:00:40]} Rfe8 {[%emt 0:01:55]} 18. Ng5 {[%emt 0:02:04]} Bf5 {[%emt 0:04:30]} 19. Nf3 {[%emt 0:09:33]} h6 {[%emt 0:02:44]} 20. a5 {[%emt 0:06:18]} Bc8 {[%emt 0:06:55]} 21. Nd2 {[%emt 0:03:47]} Bf5 {[%emt 0:01:06]} 22. Rxe8+ {[%emt 0:00:48]} Rxe8 {[%emt 0:02:04]} 23. Ba4 {[%emt 0:00:40]} Rd8 {[%emt 0:02:09]} 24. Nc4 {[%emt 0:00:13]} Qb4 {[%emt 0:02:45]} 25. Ne3 {[%emt 0:00:06]} Qxd4 {[%emt 0:00:35]} 26. Rxd4 {[%emt 0:00:04]} Ne7 {[%emt 0:06:41]} 27. Rc4 {[%emt 0:01:43]} Rc8 {[%emt 0:00:48]} 28. Rb4 {[%emt 0:01:49]} Rb8 {[%emt 0:00:15]} 29. Rc4 {[%emt 0:00:30]} Rc8 {[%emt 0:00:15]} 30. Rb4 {[%emt 0:02:06]} Rb8 {[%emt 0:00:04]} 31. Rc4 {[%emt 0:00:04]} 1/2-1/2

[Event "XII Cracow ICC-A 2024"]
[Site "Krakow"]
[Date "2024.06.29"]
[Round "9.21"]
[White "Dziewonski, Dariusz"]
[Black "Stanojevic, Ilija"]
[Result "1-0"]
[ECO "C47"]
[WhiteElo "2293"]
[BlackElo "2260"]
[Annotator "RC"]
[PlyCount "97"]
[EventDate "2024.06.20"]
[EventType "swiss"]
[EventCountry "POL"]
[SourceTitle "playchess.com"]
[Source "ChessBase"]
[SourceQuality "1"]
[TimeControl "40/5400+30:1800+30"]

1. e4 {[%emt 0:00:02]} e5 {[%emt 0:00:33]} 2. Nf3 {[%emt 0:00:07]} Nc6 {[%emt 0:00:05]} 3. Nc3 {[%emt 0:00:22]} Nf6 {[%emt 0:00:06]} 4. d4 {[%emt 0:00:13]} exd4 {[%emt 0:00:18]} 5. Nxd4 {[%emt 0:00:06]} Bb4 {[%emt 0:00:04]} 6. Nxc6 {[%emt 0:00:09]} bxc6 {[%emt 0:00:02]} 7. Bd3 {[%emt 0:00:08]} d5 {[%emt 0:00:02]} 8. Bd2 {[%emt 0:00:17]} O-O {[%emt 0:00:07]} 9. O-O {[%emt 0:00:05]} Rb8 {[%emt 0:00:01]} 10. Re1 {[%emt 0:02:51]} Re8 {[%emt 0:00:04]} 11. exd5 {[%emt 0:04:59]} cxd5 {[%emt 0:00:06]} 12. Rxe8+ {[%emt 0:02:47]} Qxe8 {[%emt 0:00:06]} 13. Bg5 {[%emt 0:01:29]} Ne4 {[%emt 0:05:37]} 14. Be3 {[%emt 0:06:42]} Nxc3 {[%emt 0:04:33]} 15. bxc3 {[%emt 0:00:07]} Bd6 {[%emt 0:17:16]} 16. Bxa7 {[%emt 0:13:25]} Ra8 {[%emt 0:02:45]} 17. Bd4 {[%emt 0:12:54]} Be6 {[%emt 0:10:18]} 18. Qh5 {[%emt 0:05:32]} g6 {[%emt 0:01:55]} 19. Qh6 {[%emt 0:03:40]} Bf8 {[%emt 0:02:43]} 20. Qe3 {[%emt 0:02:06]} Bd7 {[%emt 0:05:07]} 21. c4 {[%emt 0:09:29]} Qxe3 {[%emt 0:04:28]} 22. fxe3 {[%emt 0:04:05]} c5 {[%emt 0:11:14]} 23. Bc3 {[%emt 0:05:15]} dxc4 {[%emt 0:08:22]} 24. Bxc4 {[%emt 0:00:12]} Bf5 {[%emt 0:00:15]} 25. a4 {[%emt 0:08:11]} Bxc2 {[%emt 0:02:41]} 26. a5 {[%emt 0:00:06]} Bg7 {[%emt 0:01:33]} 27. Bxg7 {[%emt 0:02:38]} Kxg7 {[%emt 0:00:01]} 28. Bd5 {[%emt 0:00:21]} Ra7 {[%emt 0:03:32]} 29. Rc1 {[%emt 0:00:22]} Bd3 {[%emt 0:00:24]} 30. Rxc5 {[%emt 0:00:05]} h5 {[%emt 0:00:42]} 31. Kf2 {[%emt 0:03:34]} Kf6 {[%emt 0:01:02]} 32. Bf3 {[%emt 0:00:43]} Ke6 {[%emt 0:01:25]} 33. Rc3 {[%emt 0:03:09]} Bb5 {[%emt 0:06:32]} 34. Ra3 {[%emt 0:00:45]} f5 {[%emt 0:01:29]} 35. h4 {[%emt 0:01:40]} Ke5 {[%emt 0:01:40]} 36. Be2 {[%emt 0:01:59]} Bc6 {[%emt 0:04:46]} 37. a6 {[%emt 0:00:25]} Be4 {[%emt 0:02:47]} 38. Bf3 {[%emt 0:01:09]} Bc2 {[%emt 0:01:36]} 39. Bb7 {[%emt 0:00:38]} Bb1 {[%emt 0:01:39]} 40. Kg3 {[%emt 0:01:58]} Bc2 {[%emt 0:01:40]} 41. Rc3 {[%emt 0:31:15]} Be4 {[%emt 0:01:40]} 42. Bxe4 {[%emt 0:00:00]} Kxe4 {[%emt 0:00:28]} 43. Ra3 {[%emt 0:00:00]} Ke5 {[%emt 0:01:17]} 44. Kf3 {[%emt 0:00:00]} Ke6 {[%emt 0:00:21]} 45. Kf4 {[%emt 0:00:00]} Kf6 {[%emt 0:00:40]} 46. Ra2 {[%emt 0:00:00]} Ke6 {[%emt 0:00:22]} 47. e4 {[%emt 0:00:00]} fxe4 {[%emt 0:00:08]} 48. Kxe4 {[%emt 0:00:00]} Kd6 {[%emt 0:00:09]} 49. Kd4 {[%emt 0:00:00]} 1-0